Cogmind - Beta 16 @@@ ROGUE MODE // 2025.10.29 @ 18:58:53 Player: ZLD1 Result: Destroyed by S-10 Pest with Light Assault Rifle Performance ------------- Evolutions (0) 0 Regions Visited (1) 200 Robots Destroyed (0) 0 Value Destroyed (0) 0 Prototype IDs (0) 0 Alien Tech Used (0) 0 Bonus (0) 0 TOTAL SCORE: 200 Bonus ------- None Cogmind --------- Core Integrity 0/250 Matter 168/300 Energy 98/100 System Corruption 2% Temperature Cool (0) Movement Core (50) Location -10/Materials Parts ------- > --- POWER (1) -------- (None) > --- PROPULSION (2) --- (None) > --- UTILITY (2) ------ Signal Interpreter > --- WEAPON (2) ------- (None) > --- INVENTORY (5) ---- Ion Engine Light Ion Engine Aluminum Leg Aluminum Leg Small Storage Unit Peak State ------------ > --- POWER ------------ (None) > --- PROPULSION ------- (None) > --- UTILITY ---------- Signal Interpreter > --- WEAPON ----------- (None) > --- INVENTORY -------- Ion Engine Light Ion Engine Aluminum Leg Aluminum Leg Small Storage Unit [Rating: 1] Favorites ----------- Power None Propulsion None Utility Signal Interpreter Processor Signal Interpreter Weapon None Build | -11 -10 ------- Run | Yrd Mat Slots Evolved . | . . Power . | . . Propulsion . | . . Utility . | . . Weapon . | . . Parts Attached 1 | . 1 Power . | . . Engine . | . . Core . | . . Reactor . | . . Propulsion . | . . Treads . | . . Leg . | . . Wheel . | . . Hover . | . . Flight . | . . Utility 1 | . 1 Device . | . . Storage . | . . Processor 1 | . 1 Hackware . | . . Protection . | . . Artifact . | . . Weapon . | . . Energy Gun . | . . Energy Cannon . | . . Ballistic Gun . | . . Ballistic Cannon . | . . Launcher . | . . Special Weapon . | . . Impact Weapon . | . . Slashing Weapon . | . . Piercing Weapon . | . . Special Melee Weapon . | . . Unidentified Prototypes . | . . Parts Lost . | . . Power . | . . Propulsion . | . . Utility . | . . Weapon . | . . Highest Loss Streak . | . . To Critical Strikes . | . . Average Backups 4 | 3 5 Power 1 | 1 2 Propulsion 1 | 1 2 Utility . | . 1 Weapon . | . . Tool/Special . | . . Unused Backups 5 | . 5 Power 2 | . 2 Propulsion 2 | . 2 Utility 1 | . 1 Weapon . | . . Tool/Special . | . . Average Slot Usage (%) 1 | . 1 Processor 1 | . 1 Peak Build Rating 1 | . 1 Average Rating . | . . On Entrance . | . . Avg Prop Armor Cover (%) . | . . Naked Turns 78 | . 78 Heaviest Build . | . . Greatest Support 3 | 3 3 Greatest Overweight (x) . | . . Average Overweight (x) . | . . Largest Inventory Capacity 5 | 5 5 Average Capacity 5 | 5 5 Most Carried 5 | 5 5 Average Carried 4 | 3 5 Final Capacity 5 | 5 5 Final Carried 5 | 5 5 Class Distribution -------------------- 100% | Mutant Dominant Class ---------------- Mutant | -10/Materials Resources | -11 -10 ----------- Run | Yrd Mat Matter Collected 72 | 72 . Remotely . | . . Salvage Created . | . . Parts . | . . Haulers Intercepted . | . . Recyclers Shooed . | . . Parts Field Recycled . | . . Retrieved Matter . | . . Parts Self-Destructed . | . . Prevented . | . . Parts Restored . | . . Kills | -11 -10 ------- Run | Yrd Mat Combat Hostiles Destroyed . | . . Classes Destroyed . | . . Best Kill Streak . | . . Combat Bots Only . | . . Max Kills in Single Turn . | . . Gunslinging . | . . Exploded . | . . Melee . | . . Uniques/NPCs Destroyed . | . . Combat | -11 -10 -------- Run | Yrd Mat Hostile Shots Fired 39 | . 39 Missed 12 | . 12 Hits 27 | . 27 Projectile 27 | . 27 Critical Strikes 1 | . 1 Damage Taken 253 | . 253 Core 253 | . 253 Absorbed by Shields . | . . Core Remaining (%) 100 | 100 . Volleys Fired . | . . Largest . | . . Hottest . | . . Shots Fired . | . . Gun . | . . Cannon . | . . Launcher . | . . Special . | . . Kinetic . | . . Thermal . | . . Explosive . | . . Electromagnetic . | . . Robot Hit Streak . | . . Robot Miss Streak . | . . Penetration Max . | . . Secondary Targets . | . . Shots Hit Robots . | . . Core Hits . | . . Critical Kills . | . . Critical Parts Destroyed . | . . Critical Strikes . | . . Melee Attacks . | . . Impact . | . . Slashing . | . . Piercing . | . . Sneak Attacks . | . . Combat Hostiles . | . . Follow-up Attacks . | . . Damage Inflicted 15 | . 15 Guns . | . . Cannons . | . . Explosions . | . . Melee . | . . Ramming 15 | . 15 Kinetic . | . . Thermal . | . . Explosive . | . . Electromagnetic . | . . Impact . | . . Slashing . | . . Piercing . | . . Highest Corruption 2 | . 2 Average Corruption 2 | . 2 Corruption Purged . | . . Corruption Blocked . | . . Overload Shots . | . . Overflow Damage . | . . Projectiles . | . . Explosions . | . . Melee . | . . Knockbacks . | . . Impact . | . . Kinetic . | . . Secondary . | . . Self-Inflicted Damage 7 | . 7 Shots . | . . Rammed 2 | . 2 Targets Rammed 2 | . 2 Kicked . | . . Crushed . | . . Highest Temperature . | . . Average Temperature . | . . Received Heat Transfer 30 | . 30 Siege Activations . | . . Martial Activations . | . . Shielding Activations . | . . Robots Disrupted . | . . Combat Hostiles . | . . Robots Corrupted . | . . Combat Hostiles . | . . Parts Fried . | . . Impact Corruptions . | . . Robots Melted . | . . Combat Hostiles . | . . Parts Melted . | . . Heat Transferred . | . . Parts Sabotaged . | . . Parts Stolen . | . . Parts Stripped . | . . Power Chain Reactions . | . . Alert | -11 -10 ------- Run | Yrd Mat Maximum Alert Level . | . . Low Security (%) 100 | 100 100 Level 1 . | . . Level 2 . | . . Level 3 . | . . Level 4 . | . . Level 5 . | . . High Security . | . . Max Security . | . . Peak Influence 50 | . 50 Initial . | . . Average 13 | . 17 Influence Increases 60 | . 60 Lose Combat Pursuer 60 | . 60 Influence Decreases 20 | . 20 Time Decay 20 | . 20 Squads Dispatched 1 | . 1 Investigation . | . . Extermination . | . . Reinforcement 1 | . 1 Assault . | . . Garrison . | . . Intercept . | . . Searches Triggered . | . . Construction Impeded . | . . Haulers Reinforced . | . . Active Scanning Responses . | . . Cargo Convoy Interrupts . | . . Stealth | -11 -10 --------- Run | Yrd Mat Distress Signals 1 | . 1 Communications Jammed . | . . Distress Signals . | . . Times Spotted 11 | . 11 Peak Tracking Total 6 | . 6 Tactical Retreats 2 | . 2 Traps | -11 -10 ------- Run | Yrd Mat Traps Triggered . | . . Indirectly . | . . Trap Hack Attempts . | . . Triggered . | . . Disarmed . | . . Reprogrammed . | . . Reused . | . . Traps Extracted . | . . Installed . | . . Triggered . | . . Machines | -11 -10 ---------- Run | Yrd Mat Machines Disabled . | . . Max in Single Turn . | . . Machines Repaired . | . . Machines Dismantled . | . . Machines Sabotaged . | . . Overloaded Fab Kills . | . . Hacking | -11 -10 --------- Run | Yrd Mat Machines Accessed . | . . Terminals . | . . Fabricators . | . . Repair Stations . | . . Recycling Units . | . . Scanalyzers . | . . Garrison Access . | . . Total Hacks . | . . Successful . | . . Failed . | . . Catastrophic . | . . Database Lockouts . | . . Manual . | . . Terminals . | . . Fabricators . | . . Repair Stations . | . . Recycling Units . | . . Scanalyzers . | . . Garrison Access . | . . Terminal Hacks . | . . Fabricator Hacks . | . . Repair Station Hacks . | . . Recycling Unit Hacks . | . . Scanalyzer . | . . Garrison Access Hacks . | . . Unauthorized Hacks . | . . Terminals . | . . Fabricators . | . . Repair Stations . | . . Recycling Units . | . . Scanalyzers . | . . Garrison Access . | . . Data Cores Recovered . | . . Used . | . . Hacking Detections . | . . Full Trace Events . | . . Feedback Events . | . . Feedback Blocked . | . . Robot Schematics Acquired . | . . Robots Built . | . . Authchips . | . . Time . | . . Total Robot Build Rating . | . . Part Schematics Acquired . | . . Parts Built . | . . Authchips . | . . Time . | . . Total Part Build Rating . | . . Part Studies Acquired . | . . Parts Repaired . | . . Time . | . . Parts Recycled . | . . Recycled Matter . | . . Retrieved Matter . | . . Retrieved Components . | . . Parts Scanalyzed . | . . Part Schematics Acquired . | . . Parts Damaged . | . . Bothacking | -11 -10 ------------ Run | Yrd Mat Used RIF Installer . | . . Robots Hacked . | . . Non-combat . | . . Combat . | . . Robot Hacks Applied . | . . Relay Couplers Released . | . . Fabnet Peak Effective % . | . . Robots Rewired . | . . Allies Hacked . | . . Hacks Repelled . | . . Allies | -11 -10 -------- Run | Yrd Mat Total Allies . | . . Largest Group . | . . Highest-Rated Group . | . . Highest-Rated Ally . | . . Total Orders . | . . Ally Attacks . | . . Total Damage . | . . Kills . | . . Allies Corrupted . | . . Allies Melted . | . . Intel | -11 -10 ------- Run | Yrd Mat Active Infowar (turns) . | . . Robot Analysis Total . | . . Derelict Logs Recovered . | . . Drone Launches . | . . Drone Recoveries . | . . Exploration | -11 -10 ------------- Run | Yrd Mat Turns Passed 114 | 22 92 Spaces Moved 211 | 34 177 Core 211 | 34 177 Treads . | . . Legs . | . . Wheels . | . . Hover . | . . Flight . | . . Fastest Speed 50 | 50 50 Average Speed 50 | 50 50 Slowest Speed 50 | 50 50 Overloaded Moves . | . . Propulsion Burnouts . | . . Robots Hopped . | . . Potential Cave-ins . | . . Cave-ins Triggered . | . . Exploration Rate (%) 20 | 3 37 Regions Visited 1 Branch Regions . Pre-discovered Areas . | . . Known Exits Taken . | . . Unknown Exits Taken 1 | 1 . Scrap Searched . | . . Spaces Dug . | . . Terrain Destroyed . | . . Melee . | . . Projectile . | . . AOE . | . . Terrain Rammed . | . . Walls Destroyed . | . . Machines Disabled . | . . Actions | -11 -10 --------- Run | Yrd Mat Total 218 | 38 180 Wait . | . . Move 210 | 33 177 Hop . | . . Pick Up 5 | 5 . Fast Attach 1 | . 1 Attach . | . . Detach . | . . Swap . | . . Drop . | . . Fire . | . . Melee . | . . Ram 2 | . 2 Kick . | . . Crush . | . . Escape Stasis . | . . Rewire . | . . Trap . | . . Miscellaneous . | . . Route ------- -11/Scrapyard -10/Materials History --------- Turn | Location | Event 8 | -11/Scrapyard | Discovered new exit (range 16) 23 | -11/Scrapyard | Entered Materials 62 | -10/Materials | Core integrity fell below 50% 88 | -10/Materials | Core integrity fell below 20% 115 | -10/Materials | Destroyed by S-10 Pest with Light Assault Rifle Last Messages --------------- 00008_ Acquired Aluminum Leg. 00010_ Acquired Sml. Storage Unit. 00013_ Acquired Lgt. Ion Engine. 00022_ T-07 Excavator is excavating. LOCATION=UNKNOWN GOAL=ESCAPE 00023_ ALERT: A rogue bot has emerged from the scrapyard. Terminate on contact. 00043_ W-16 Scout sends out distress signal. 00051_ O-16 Technician: "IFF HANDSHAKE FAILED. SECURING TERMINAL." 00055_ O-16 Technician uses terminal to summon reinforcements. 00055_ ALERT: Hostiles spotted, dispatching reinforcements to Terminal M008. 00055_ O-16 Technician locks terminal. 00064_ Slammed into U-05 Engineer. 00066_ Destabilizing: System corrupted (+2). 00077_ K-01 Serf collects debris. 00101_ Acquired Signal Interpreter. Map ----- +----------------------------------------------------+ | ????????????????????#* # #???????? | | ????????????????????# # #???????? | | ????????????????????# # #???????? | | ????????????????????#"" + #???????? | | ????????????????????#"T # #???????? | | ????????????????????#"" # #???????? | | ????????????????????# # # #??????? | | ????????????????????###### # #??????? | | ?????????????????????????# # ?????? | | ????????????????????????# # #? ###????? | | ???????????????????? # #? #??????? | | ????????????????? T # #???###??????? | | ????????????????? # #????????????? | | ?????????????#+########## # #????????????? | | ?????????????? ############# #????????????? | | ??????????????"" # #??????# #????????????? | | ???????????????" # "#??????# #????????????? | | ??????????????? # "#??????# #????????????? | | ???????????????? *# "#??????# #????????????? | | ???????????????? # T#??????# ########## # | | ????????????????#+# "#??????# | | ????????????????# # "#??????# | | ????????????#???# # "#??????#" """" """" ? | | ????????????# ??# # #??????#T """" """??? | | ????????????# ### ##+####+#####" """" """??? | | ????????????# @ | | ????????????# s | | ????????######## ########+############## | | ????????# *]?# #??# #???????????? | | ????????# *]?# #??# """ #?????????????? | | ????????# ] # #### """"" #?????????????? | | ????????# # / """"" #?????????????? | | ????????# + #### """"" #?????????????? | | ????????# # #??# """ #?????????????? | | ????????######## ##?# #?????????????? | | ?????????###### #?# #?????????????? | | ?????????# #?###########?????????????? | | ?????????# " #?????????????????????????? | | ?????#######+## #?????????????????????????? | | ????# ######?????????????????????????? | | ????# #??????????????????????????????? | | ????# #??????????????????????????????? | | ????# #??????????????????????????????? | | ????###########??????????????????????????????? | | | | | | | | | | | | | +----------------------------------------------------+ Best States ------------- Heat Dissipation 25 Energy Generation 5 Energy Capacity 100 Matter Stores 178 Matter Capacity 300 Sight Range 16 Terrain Scan Density 10 Evasion (%) 50 Item Schematics ----------------- None Robot Schematics ------------------ None Fabricated ------------ Nothing Repaired ---------- Nothing Studied --------- None Alien Tech Used ----------------- None Achievements -------------- None Challenges ------------ None Game ------ Seed MetafieldCloakingScrap Manual? 0 Play Time 00:03:11 Cumulative 64.2 hours Start 2025.10.29 @ 18:46:41 End 2025.10.29 @ 18:58:53 Sessions 1 Manual Loads 0 Difficulty Rogue Special Mode None Game No. 156 Rogue 156 Adventurer 0 Explorer 0 Win Type - Total 1 Types 1/0/0/0/0/0/0/0/0/0 Lore% 33 Gallery% 37 Achievement% 19 Wizard Run 0 Options --------- Layout 1 ASCII 0 Keyboard 0 Movement Arrows Keybinds 0 Fullscreen 1 Font 24/Smallcaps Map View 50x40 Zoom Use 0% Tactical HUD 1 Map Filters NONE Filters NONE Steam 1 RUN: fb566262-e0e8-4343-9f19-033311010614